[Event "*** Qualifier 2: Titled Tuesday 3|2 Blitz"]
[Site "Chess.com"]
[Date "2017.04.11"]
[Round "2"]
[White "Goala"]
[Black "hansen"]
[Result "0-1"]
[WhiteElo "2304"]
[BlackElo "2670"]
[TimeControl "180+2"]
[EndTime "13:21:04 PDT"]
[Termination "hansen won by resignation"]

1. d4 {[%clk 0:03:02]} 1... Nf6 {[%clk 0:03:00.6]} 2. c4 {[%clk 0:03:03.2]} 2...
e6 {[%clk 0:02:59.8]} 3. Nf3 {[%clk 0:03:04.3]} 3... b6 {[%clk 0:02:58.4]} 4. g3
{[%clk 0:03:04.9]} 4... c6 {[%clk 0:02:59.8]} 5. Bg2 {[%clk 0:03:01.1]} 5...
Bb4+ {[%clk 0:03:00.7]} 6. Bd2 {[%clk 0:03:01.6]} 6... Be7 {[%clk 0:03:01.8]} 7.
O-O {[%clk 0:02:59.7]} 7... d5 {[%clk 0:03:03.2]} 8. Nc3 {[%clk 0:03:01.3]} 8...
O-O {[%clk 0:02:59.6]} 9. Qb3 {[%clk 0:02:58.6]} 9... Ba6 {[%clk 0:02:54.8]} 10.
cxd5 {[%clk 0:02:56.1]} 10... cxd5 {[%clk 0:02:56.7]} 11. Bf4 {[%clk 0:02:57.5]}
11... Nc6 {[%clk 0:02:46.8]} 12. Qa4 {[%clk 0:02:47.3]} 12... Bb7 {[%clk
0:02:31.6]} 13. Rac1 {[%clk 0:02:45.9]} 13... a6 {[%clk 0:02:27.2]} 14. Rfd1
{[%clk 0:02:27.2]} 14... b5 {[%clk 0:02:26.3]} 15. Qc2 {[%clk 0:02:27.7]} 15...
Qb6 {[%clk 0:02:24.5]} 16. h3 {[%clk 0:01:51.2]} 16... Rac8 {[%clk 0:02:22.9]}
17. Qb1 {[%clk 0:01:51.8]} 17... Rfd8 {[%clk 0:02:16.7]} 18. g4 {[%clk
0:01:52.9]} 18... h6 {[%clk 0:01:52.6]} 19. Be3 {[%clk 0:00:57.1]} 19... Na5
{[%clk 0:01:35.6]} 20. b3 {[%clk 0:00:43.6]} 20... Nc6 {[%clk 0:01:33.3]} 21.
Kh1 {[%clk 0:00:39.5]} 21... Ba3 {[%clk 0:01:32.8]} 22. g5 {[%clk 0:00:35.4]}
22... hxg5 {[%clk 0:01:32.9]} 23. Bxg5 {[%clk 0:00:34.3]} 23... Bxc1 {[%clk
0:01:33.9]} 24. Qxc1 {[%clk 0:00:24.7]} 24... Ne7 {[%clk 0:01:33.8]} 25. Bxf6
{[%clk 0:00:12.9]} 25... gxf6 {[%clk 0:01:33.6]} 26. Qe3 {[%clk 0:00:12.6]}
26... Nf5 {[%clk 0:01:25.2]} 27. Qd3 {[%clk 0:00:14.1]} 27... Qc7 {[%clk
0:01:26.2]} 28. e4 {[%clk 0:00:04.8]} 28... Qxc3 {[%clk 0:01:24.5]} 29. exf5
{[%clk 0:00:05.7]} 29... Qxd3 {[%clk 0:01:25.3]} 30. Rxd3 {[%clk 0:00:07.6]}
30... b4 {[%clk 0:01:23.9]} 31. Re3 {[%clk 0:00:07.6]} 31... Rd6 {[%clk
0:01:20.9]} 32. Ne1 {[%clk 0:00:05.8]} 32... Rc3 {[%clk 0:01:18.1]} 33. Nd3
{[%clk 0:00:06]} 33... a5 {[%clk 0:01:14.8]} 34. Kh2 {[%clk 0:00:04.2]} 34...
Ba6 {[%clk 0:01:15.4]} 35. Bf1 {[%clk 0:00:05.2]} 35... Bxd3 {[%clk 0:01:14.4]}
36. Bxd3 {[%clk 0:00:05.8]} 36... Kf8 {[%clk 0:01:13.8]} 37. a3 {[%clk
0:00:07.1]} 37... bxa3 {[%clk 0:01:13.4]} 38. fxe6 {[%clk 0:00:07.9]} 38... Rxe6
{[%clk 0:01:13.3]} 0-1

[Event "*** Qualifier 2: Titled Tuesday 3|2 Blitz"]
[Site "Chess.com"]
[Date "2017.04.11"]
[Round "2"]
[White "Rating-Schmating"]
[Black "TomsKantans"]
[Result "0-1"]
[WhiteElo "2246"]
[BlackElo "2453"]
[TimeControl "180+2"]
[EndTime "13:21:16 PDT"]
[Termination "TomsKantans won by resignation"]

1. e4 {[%clk 0:03:01.9]} 1... c5 {[%clk 0:02:59.3]} 2. Nf3 {[%clk 0:03:02.1]}
2... Nf6 {[%clk 0:03:00.1]} 3. Nc3 {[%clk 0:03:01.4]} 3... Nc6 {[%clk
0:03:00.9]} 4. d4 {[%clk 0:03:02]} 4... d5 {[%clk 0:03:01.9]} 5. exd5 {[%clk
0:03:00.7]} 5... Nxd5 {[%clk 0:03:02.7]} 6. Nxd5 {[%clk 0:02:58.7]} 6... Qxd5
{[%clk 0:03:03.6]} 7. c4 {[%clk 0:02:57.4]} 7... Qe4+ {[%clk 0:03:00.9]} 8. Be3
{[%clk 0:02:58.5]} 8... cxd4 {[%clk 0:03:00.3]} 9. Nxd4 {[%clk 0:02:59.7]} 9...
e5 {[%clk 0:02:58.7]} 10. Nxc6 {[%clk 0:02:58.5]} 10... Qxc6 {[%clk 0:02:58.3]}
11. Qc2 {[%clk 0:02:53.3]} 11... Bb4+ {[%clk 0:02:52.2]} 12. Bd2 {[%clk
0:02:52.9]} 12... Bxd2+ {[%clk 0:02:45.3]} 13. Qxd2 {[%clk 0:02:53.8]} 13... Be6
{[%clk 0:02:45.9]} 14. Qg5 {[%clk 0:02:46]} 14... O-O {[%clk 0:02:46.6]} 15. Rc1
{[%clk 0:02:31.2]} 15... Rad8 {[%clk 0:02:32]} 16. Be2 {[%clk 0:02:28.7]} 16...
f6 {[%clk 0:02:32.6]} 17. Qg3 {[%clk 0:02:22.3]} 17... Qb6 {[%clk 0:02:28.4]}
18. Qc3 {[%clk 0:02:20.1]} 18... Rd4 {[%clk 0:02:14.9]} 19. O-O {[%clk
0:02:18.6]} 19... Rfd8 {[%clk 0:02:15.5]} 20. Rfd1 {[%clk 0:02:19.1]} 20... a5
{[%clk 0:02:02.3]} 21. b3 {[%clk 0:02:18.6]} 21... Qb4 {[%clk 0:02:02.4]} 22.
Qxb4 {[%clk 0:02:17.1]} 22... axb4 {[%clk 0:02:03.2]} 23. Kf1 {[%clk 0:02:16.9]}
23... Kf7 {[%clk 0:02:02.4]} 24. Ke1 {[%clk 0:02:17.9]} 24... Ke7 {[%clk
0:02:03.2]} 25. Rxd4 {[%clk 0:02:15.6]} 25... Rxd4 {[%clk 0:02:05.1]} 26. Rd1
{[%clk 0:02:16.5]} 26... Rxd1+ {[%clk 0:02:03.8]} 27. Kxd1 {[%clk 0:02:17.3]}
27... Kd6 {[%clk 0:01:42.8]} 28. Kd2 {[%clk 0:02:17.5]} 28... e4 {[%clk
0:01:43.7]} 29. Ke3 {[%clk 0:02:15.7]} 29... Ke5 {[%clk 0:01:44.4]} 30. Bd1
{[%clk 0:02:11.8]} 30... f5 {[%clk 0:01:39]} 31. g3 {[%clk 0:02:12.9]} 31... g5
{[%clk 0:01:39.9]} 32. Bc2 {[%clk 0:02:02.9]} 32... f4+ {[%clk 0:01:40.2]} 33.
Kd2 {[%clk 0:02:04.1]} 33... Kd4 {[%clk 0:01:37.1]} 34. h4 {[%clk 0:02:01.9]}
34... h6 {[%clk 0:01:34.8]} 35. hxg5 {[%clk 0:02:01.4]} 35... hxg5 {[%clk
0:01:36.7]} 36. gxf4 {[%clk 0:02:02.8]} 36... gxf4 {[%clk 0:01:38.6]} 37. Ke2
{[%clk 0:01:57.7]} 37... b6 {[%clk 0:01:38.5]} 38. Bb1 {[%clk 0:01:57.4]} 38...
Bg4+ {[%clk 0:01:33.7]} 39. Kd2 {[%clk 0:01:57.5]} 39... e3+ {[%clk 0:01:26.6]}
40. Ke1 {[%clk 0:01:53.9]} 40... Kc3 {[%clk 0:01:26.1]} 41. Be4 {[%clk
0:01:47.9]} 41... Kb2 {[%clk 0:01:23.5]} 42. Bc6 {[%clk 0:01:45.2]} 42... Kxa2
{[%clk 0:01:23.5]} 43. fxe3 {[%clk 0:01:38.8]} 43... fxe3 {[%clk 0:01:24.1]} 44.
Bd5 {[%clk 0:01:39.5]} 44... Kb2 {[%clk 0:01:22]} 45. Bg8 {[%clk 0:01:39]} 45...
Kc3 {[%clk 0:01:22.4]} 46. Bf7 {[%clk 0:01:40]} 46... Bf5 {[%clk 0:01:22.2]} 47.
Ke2 {[%clk 0:01:40.4]} 47... Kd4 {[%clk 0:01:22.9]} 48. Be8 {[%clk 0:01:38.6]}
48... Bc2 {[%clk 0:01:17.1]} 49. Ba4 {[%clk 0:01:39.3]} 49... Bd3+ {[%clk
0:01:17.7]} 50. Ke1 {[%clk 0:01:40.5]} 50... Kc3 {[%clk 0:01:17.6]} 51. Kd1
{[%clk 0:01:39.4]} 51... Bc2+ {[%clk 0:01:16.5]} 52. Ke2 {[%clk 0:01:40.6]}
52... Bxb3 {[%clk 0:01:17.6]} 53. Be8 {[%clk 0:01:37.5]} 53... Kd4 {[%clk
0:01:18]} 54. Bf7 {[%clk 0:01:37.6]} 54... Bc2 {[%clk 0:01:15.2]} 55. Bg8 {[%clk
0:01:35.9]} 55... b3 {[%clk 0:01:15]} 56. Bh7 {[%clk 0:01:33.9]} 56... Bxh7
{[%clk 0:01:13.6]} 0-1

[Event "*** Qualifier 2: Titled Tuesday 3|2 Blitz"]
[Site "Chess.com"]
[Date "2017.04.11"]
[Round "2"]
[White "Infernal_XaM"]
[Black "Witik"]
[Result "0-1"]
[WhiteElo "2738"]
[BlackElo "2494"]
[TimeControl "180+2"]
[EndTime "13:21:33 PDT"]
[Termination "Witik won by resignation"]

1. d4 {[%clk 0:03:02]} 1... Nf6 {[%clk 0:02:59.5]} 2. Nf3 {[%clk 0:03:03.9]}
2... e6 {[%clk 0:03:00]} 3. Bf4 {[%clk 0:03:05.3]} 3... c5 {[%clk 0:03:00.6]} 4.
e3 {[%clk 0:03:05.6]} 4... b6 {[%clk 0:02:57.7]} 5. Nbd2 {[%clk 0:03:05.5]} 5...
Bb7 {[%clk 0:02:58.8]} 6. Bd3 {[%clk 0:03:06.5]} 6... Be7 {[%clk 0:02:59.4]} 7.
O-O {[%clk 0:03:05.5]} 7... O-O {[%clk 0:03:00.1]} 8. c3 {[%clk 0:03:05.5]} 8...
d6 {[%clk 0:03:01.4]} 9. h3 {[%clk 0:03:05.4]} 9... Nbd7 {[%clk 0:03:01.8]} 10.
Bh2 {[%clk 0:03:04.9]} 10... a6 {[%clk 0:03:01.2]} 11. e4 {[%clk 0:03:05.2]}
11... b5 {[%clk 0:03:00]} 12. Qe2 {[%clk 0:03:04.7]} 12... Re8 {[%clk
0:02:57.3]} 13. e5 {[%clk 0:03:04.9]} 13... dxe5 {[%clk 0:02:55.6]} 14. dxe5
{[%clk 0:03:05.9]} 14... Nd5 {[%clk 0:02:56.7]} 15. Ne4 {[%clk 0:03:06.4]} 15...
Qb6 {[%clk 0:02:52.7]} 16. Rad1 {[%clk 0:03:06.4]} 16... h6 {[%clk 0:02:48.9]}
17. Bc2 {[%clk 0:03:06.1]} 17... c4 {[%clk 0:02:47]} 18. Nd4 {[%clk 0:03:02.8]}
18... Nf8 {[%clk 0:02:43.4]} 19. Qg4 {[%clk 0:02:58.9]} 19... Kh8 {[%clk
0:02:40.5]} 20. Rfe1 {[%clk 0:02:55.6]} 20... Rad8 {[%clk 0:02:39.3]} 21. Kh1
{[%clk 0:02:55.1]} 21... Nd7 {[%clk 0:02:37.8]} 22. f4 {[%clk 0:02:52.2]} 22...
Bf8 {[%clk 0:02:35]} 23. f5 {[%clk 0:02:50.1]} 23... exf5 {[%clk 0:02:34.4]} 24.
Qxf5 {[%clk 0:02:51.1]} 24... g6 {[%clk 0:02:29.8]} 25. Qxf7 {[%clk 0:02:51.2]}
25... Re7 {[%clk 0:02:30.5]} 26. Qf2 {[%clk 0:02:44.7]} 26... Nxe5 {[%clk
0:02:31.2]} 27. Nc5 {[%clk 0:02:37.5]} 27... Bg7 {[%clk 0:02:27.8]} 28. Nxb7
{[%clk 0:02:34.7]} 28... Qxb7 {[%clk 0:02:26.9]} 29. Be4 {[%clk 0:02:27.6]}
29... Qb6 {[%clk 0:02:25.5]} 30. Qh4 {[%clk 0:02:14.3]} 30... Qf6 {[%clk
0:02:17.6]} 31. Qg3 {[%clk 0:02:13.2]} 31... Nb6 {[%clk 0:02:11.9]} 32. Rf1
{[%clk 0:02:12.8]} 32... Qg5 {[%clk 0:02:10.6]} 33. Qxg5 {[%clk 0:01:43.3]}
33... hxg5 {[%clk 0:02:11.5]} 34. Nf3 {[%clk 0:01:44.1]} 34... Nd3 {[%clk
0:02:08.4]} 35. Nxg5 {[%clk 0:01:41.5]} 35... Nf2+ {[%clk 0:02:05.8]} 36. Rxf2
{[%clk 0:01:34.5]} 36... Rxd1+ {[%clk 0:02:06.3]} 37. Bg1 {[%clk 0:01:36.1]}
37... Nd7 {[%clk 0:01:56.5]} 38. Bxg6 {[%clk 0:01:22.4]} 38... Ree1 {[%clk
0:01:49.6]} 39. Nf3 {[%clk 0:01:23.2]} 39... Rf1 {[%clk 0:01:50.5]} 40. Rxf1
{[%clk 0:01:20]} 40... Rxf1 {[%clk 0:01:51.6]} 41. Be4 {[%clk 0:01:21.1]} 41...
Ne5 {[%clk 0:01:46.7]} 42. Nxe5 {[%clk 0:01:18]} 42... Bxe5 {[%clk 0:01:47.5]}
43. g4 {[%clk 0:01:19.5]} 43... Ra1 {[%clk 0:01:44.7]} 44. a3 {[%clk 0:01:17.9]}
44... Ra2 {[%clk 0:01:45.6]} 45. Bb7 {[%clk 0:01:18.8]} 45... Rxb2 {[%clk
0:01:44.1]} 46. Bxa6 {[%clk 0:01:19.7]} 46... Bxc3 {[%clk 0:01:45.1]} 47. Bc5
{[%clk 0:01:20.2]} 47... Kg7 {[%clk 0:01:30.5]} 48. h4 {[%clk 0:01:19.7]} 48...
Be5 {[%clk 0:01:29.6]} 49. h5 {[%clk 0:01:15.7]} 49... c3 {[%clk 0:01:29.1]} 50.
Be3 {[%clk 0:01:16.3]} 50... c2 {[%clk 0:01:26.7]} 51. Bb7 {[%clk 0:01:14.9]}
51... Rb1+ {[%clk 0:01:24.9]} 52. Kg2 {[%clk 0:01:16]} 52... c1=Q {[%clk
0:01:23.5]} 53. h6+ {[%clk 0:01:17.3]} 53... Kh8 {[%clk 0:01:13.2]} 54. Bxc1
{[%clk 0:01:14.5]} 54... Rxc1 {[%clk 0:01:14.4]} 55. Kf3 {[%clk 0:01:16.4]}
55... Kh7 {[%clk 0:01:10.2]} 56. g5 {[%clk 0:01:16.8]} 56... Kg6 {[%clk
0:01:11.3]} 0-1

[Event "*** Qualifier 2: Titled Tuesday 3|2 Blitz"]
[Site "Chess.com"]
[Date "2017.04.11"]
[Round "2"]
[White "Sven_Tica"]
[Black "bilelou"]
[Result "1/2-1/2"]
[WhiteElo "2398"]
[BlackElo "2341"]
[TimeControl "180+2"]
[EndTime "13:21:59 PDT"]
[Termination "Game drawn - insufficient material"]

1. d4 {[%clk 0:03:01.1]} 1... d5 {[%clk 0:03:00.5]} 2. c4 {[%clk 0:03:02.2]}
2... e6 {[%clk 0:03:02.1]} 3. Nf3 {[%clk 0:03:03.2]} 3... c6 {[%clk 0:03:03.5]}
4. Qc2 {[%clk 0:03:02.7]} 4... dxc4 {[%clk 0:03:03]} 5. Qxc4 {[%clk 0:03:03]}
5... b5 {[%clk 0:03:00.8]} 6. Qc2 {[%clk 0:03:03.5]} 6... Bb7 {[%clk 0:02:53.6]}
7. g3 {[%clk 0:03:03.6]} 7... Nf6 {[%clk 0:02:53.3]} 8. Bg2 {[%clk 0:03:03.5]}
8... Nbd7 {[%clk 0:02:54.9]} 9. O-O {[%clk 0:03:04.2]} 9... Rc8 {[%clk
0:02:55.9]} 10. Nc3 {[%clk 0:02:54.6]} 10... Qb6 {[%clk 0:02:52.4]} 11. Bf4
{[%clk 0:02:33.5]} 11... c5 {[%clk 0:02:51.6]} 12. dxc5 {[%clk 0:02:31.5]} 12...
Bxc5 {[%clk 0:02:51.9]} 13. h3 {[%clk 0:02:25.7]} 13... O-O {[%clk 0:02:52.2]}
14. Rad1 {[%clk 0:02:19.6]} 14... b4 {[%clk 0:02:44.9]} 15. Na4 {[%clk
0:02:13.6]} 15... Bxf2+ {[%clk 0:02:44]} 16. Rxf2 {[%clk 0:02:15]} 16... Qxf2+
{[%clk 0:02:43.3]} 17. Kxf2 {[%clk 0:02:16.9]} 17... Rxc2 {[%clk 0:02:44.2]} 18.
Nd4 {[%clk 0:02:17]} 18... Bxg2 {[%clk 0:02:32]} 19. Nxc2 {[%clk 0:02:16.9]}
19... Bxh3 {[%clk 0:02:32.7]} 20. Nxb4 {[%clk 0:02:17.6]} 20... e5 {[%clk
0:02:30.5]} 21. Bc1 {[%clk 0:02:08.3]} 21... Ne4+ {[%clk 0:02:23.9]} 22. Kg1
{[%clk 0:02:09.5]} 22... Bg4 {[%clk 0:02:22.4]} 23. Kg2 {[%clk 0:02:05.3]} 23...
Ndf6 {[%clk 0:02:12.9]} 24. Be3 {[%clk 0:02:00.8]} 24... Bxe2 {[%clk 0:02:12.8]}
25. Re1 {[%clk 0:01:59.4]} 25... Bb5 {[%clk 0:02:12.8]} 26. Nc5 {[%clk
0:01:59.2]} 26... Nxc5 {[%clk 0:02:12.8]} 27. Bxc5 {[%clk 0:02:01.1]} 27... a5
{[%clk 0:02:14.4]} 28. Bxf8 {[%clk 0:01:59.8]} 28... axb4 {[%clk 0:02:02.5]} 29.
Bxb4 {[%clk 0:01:58.9]} 29... Bc6+ {[%clk 0:02:03.4]} 30. Kg1 {[%clk 0:02:00]}
30... e4 {[%clk 0:01:58.8]} 31. Be7 {[%clk 0:01:57.4]} 31... Nd5 {[%clk
0:01:18.5]} 32. Rxe4 {[%clk 0:01:52.4]} 32... f5 {[%clk 0:01:19.1]} 33. Rc4
{[%clk 0:01:51.6]} 33... Nxe7 {[%clk 0:01:19.2]} 34. a4 {[%clk 0:01:48.2]} 34...
Kf7 {[%clk 0:01:18.2]} 35. a5 {[%clk 0:01:49.5]} 35... Ke6 {[%clk 0:01:18.9]}
36. a6 {[%clk 0:01:50.5]} 36... Kd5 {[%clk 0:01:19.5]} 37. b3 {[%clk 0:01:51.6]}
37... Nc8 {[%clk 0:01:18.2]} 38. Kf2 {[%clk 0:01:50.4]} 38... g5 {[%clk
0:01:18.6]} 39. Ke3 {[%clk 0:01:49.9]} 39... h5 {[%clk 0:01:19.4]} 40. Rd4+
{[%clk 0:01:47.2]} 40... Kc5 {[%clk 0:01:20.2]} 41. Rd8 {[%clk 0:01:47.3]} 41...
Na7 {[%clk 0:01:13]} 42. Rg8 {[%clk 0:01:48.1]} 42... h4 {[%clk 0:00:56.8]} 43.
Rxg5 {[%clk 0:01:44.5]} 43... h3 {[%clk 0:00:57.4]} 44. Rh5 {[%clk 0:01:45.4]}
44... Bg2 {[%clk 0:00:57.3]} 45. Kf4 {[%clk 0:01:45.9]} 45... Kb6 {[%clk
0:00:54.9]} 46. Rh6+ {[%clk 0:01:35.5]} 46... Nc6 {[%clk 0:00:54.9]} 47. Kxf5
{[%clk 0:01:35.7]} 47... Kxa6 {[%clk 0:00:55.7]} 48. g4 {[%clk 0:01:33.6]} 48...
Kb5 {[%clk 0:00:54.4]} 49. g5 {[%clk 0:01:34.7]} 49... Nd4+ {[%clk 0:00:55.6]}
50. Kg4 {[%clk 0:01:35.7]} 50... Nf3 {[%clk 0:00:51.4]} 51. Kg3 {[%clk 0:01:31]}
51... Nxg5 {[%clk 0:00:37.8]} 52. Rh5 {[%clk 0:01:28.6]} 52... Kb4 {[%clk
0:00:39.3]} 53. Rxg5 {[%clk 0:01:30.2]} 53... Kxb3 {[%clk 0:00:40.9]} 54. Rh5
{[%clk 0:01:32.1]} 54... Kc3 {[%clk 0:00:41.6]} 55. Rxh3 {[%clk 0:01:33.3]}
55... Bxh3 {[%clk 0:00:42.6]} 1/2-1/2

[Event "*** Qualifier 2: Titled Tuesday 3|2 Blitz"]
[Site "Chess.com"]
[Date "2017.04.11"]
[Round "2"]
[White "DagurR"]
[Black "dolynachess"]
[Result "1-0"]
[WhiteElo "2444"]
[BlackElo "2330"]
[TimeControl "180+2"]
[EndTime "13:22:04 PDT"]
[Termination "DagurR won by resignation"]

1. d4 {[%clk 0:03:02]} 1... Nf6 {[%clk 0:02:59.5]} 2. c4 {[%clk 0:03:02.7]} 2...
c5 {[%clk 0:03:01.2]} 3. d5 {[%clk 0:03:03.6]} 3... b5 {[%clk 0:03:02.7]} 4. f3
{[%clk 0:03:05]} 4... bxc4 {[%clk 0:03:02.3]} 5. e4 {[%clk 0:03:06.5]} 5... d6
{[%clk 0:03:03.8]} 6. Ne2 {[%clk 0:03:06.9]} 6... g6 {[%clk 0:03:05.2]} 7. Nec3
{[%clk 0:03:06.4]} 7... Bg7 {[%clk 0:03:06.6]} 8. a4 {[%clk 0:03:07.9]} 8... O-O
{[%clk 0:03:07.8]} 9. Na3 {[%clk 0:03:09.4]} 9... Ba6 {[%clk 0:03:06.2]} 10.
Bxc4 {[%clk 0:03:10]} 10... Bxc4 {[%clk 0:03:06.3]} 11. Nxc4 {[%clk 0:03:11.7]}
11... Na6 {[%clk 0:03:06.6]} 12. O-O {[%clk 0:03:12.9]} 12... Rb8 {[%clk
0:03:06.3]} 13. Be3 {[%clk 0:03:04.9]} 13... Nd7 {[%clk 0:02:59.8]} 14. Qd2
{[%clk 0:02:59.7]} 14... Ne5 {[%clk 0:02:55]} 15. Na3 {[%clk 0:03:00.7]} 15...
Rb4 {[%clk 0:02:39.9]} 16. Qe2 {[%clk 0:02:29.7]} 16... Qb6 {[%clk 0:02:09.4]}
17. Rfb1 {[%clk 0:02:26.1]} 17... Rb8 {[%clk 0:02:06.9]} 18. f4 {[%clk
0:02:19.6]} 18... Nd7 {[%clk 0:01:36.3]} 19. Nc4 {[%clk 0:02:08.1]} 19... Qd8
{[%clk 0:01:20.1]} 20. Nb5 {[%clk 0:02:05.9]} 20... Rb7 {[%clk 0:01:12.6]} 21.
Bd2 {[%clk 0:01:48.1]} 21... Rb3 {[%clk 0:00:50.9]} 22. Qd1 {[%clk 0:01:38.8]}
22... Rd3 {[%clk 0:00:51.4]} 23. Qc2 {[%clk 0:01:37.2]} 23... Rd4 {[%clk
0:00:34.2]} 24. Nxd4 {[%clk 0:01:31.2]} 24... Bxd4+ {[%clk 0:00:35]} 25. Be3
{[%clk 0:01:32.6]} 25... Nb4 {[%clk 0:00:31.7]} 26. Qd2 {[%clk 0:01:33]} 26...
Bg7 {[%clk 0:00:27.3]} 27. a5 {[%clk 0:01:23.6]} 27... a6 {[%clk 0:00:24.2]} 28.
h3 {[%clk 0:01:19.9]} 28... Rb5 {[%clk 0:00:25.1]} 29. Rf1 {[%clk 0:01:08.9]}
29... Nf6 {[%clk 0:00:24.1]} 30. e5 {[%clk 0:01:06.8]} 30... Nfxd5 {[%clk
0:00:23.8]} 31. Bf2 {[%clk 0:01:00.8]} 31... h5 {[%clk 0:00:11.1]} 32. Rad1
{[%clk 0:00:54.5]} 32... Bh6 {[%clk 0:00:11]} 33. g3 {[%clk 0:00:53.5]} 33...
dxe5 {[%clk 0:00:12]} 34. Nxe5 {[%clk 0:00:53]} 34... h4 {[%clk 0:00:12.8]} 35.
Ng4 {[%clk 0:00:48.9]} 35... Bg7 {[%clk 0:00:12.8]} 36. gxh4 {[%clk 0:00:50.4]}
36... e6 {[%clk 0:00:13.2]} 37. Ne5 {[%clk 0:00:47.6]} 37... Rxa5 {[%clk
0:00:11.4]} 38. Rc1 {[%clk 0:00:43.9]} 38... Qe7 {[%clk 0:00:08.7]} 39. Bg3
{[%clk 0:00:35.2]} 39... Bh6 {[%clk 0:00:09.1]} 40. Qf2 {[%clk 0:00:34.6]} 40...
Nc6 {[%clk 0:00:09.1]} 41. Nxc6 {[%clk 0:00:34]} 1-0

[Event "*** Qualifier 2: Titled Tuesday 3|2 Blitz"]
[Site "Chess.com"]
[Date "2017.04.11"]
[Round "2"]
[White "likantrophuss"]
[Black "Alexander_Donchenko"]
[Result "0-1"]
[WhiteElo "2400"]
[BlackElo "2590"]
[TimeControl "180+2"]
[EndTime "13:22:08 PDT"]
[Termination "Alexander_Donchenko won by resignation"]

1. Nf3 {[%clk 0:03:00]} 1... c5 {[%clk 0:03:00.8]} 2. b3 {[%clk 0:02:54]} 2...
Nc6 {[%clk 0:03:01.4]} 3. Bb2 {[%clk 0:02:55.2]} 3... Nf6 {[%clk 0:03:02.7]} 4.
e3 {[%clk 0:02:51.3]} 4... g6 {[%clk 0:03:03.6]} 5. c4 {[%clk 0:02:50.6]} 5...
Bg7 {[%clk 0:03:04.3]} 6. g3 {[%clk 0:02:48.7]} 6... O-O {[%clk 0:03:05.1]} 7.
Bg2 {[%clk 0:02:50]} 7... b6 {[%clk 0:02:57.1]} 8. O-O {[%clk 0:02:50]} 8... Bb7
{[%clk 0:02:58.3]} 9. d3 {[%clk 0:02:48.5]} 9... d6 {[%clk 0:02:55]} 10. Nc3
{[%clk 0:02:48.8]} 10... Rc8 {[%clk 0:02:53.1]} 11. a3 {[%clk 0:02:44.2]} 11...
Qd7 {[%clk 0:02:47.2]} 12. Qc2 {[%clk 0:02:04.3]} 12... Rfd8 {[%clk 0:02:46.7]}
13. Nd5 {[%clk 0:02:02.4]} 13... Ne8 {[%clk 0:02:34.9]} 14. Bxg7 {[%clk
0:02:01.8]} 14... Kxg7 {[%clk 0:02:36.8]} 15. h4 {[%clk 0:01:56.9]} 15... e6
{[%clk 0:02:36.5]} 16. Qb2+ {[%clk 0:01:55.1]} 16... Kg8 {[%clk 0:02:37.3]} 17.
Nf6+ {[%clk 0:01:51.9]} 17... Nxf6 {[%clk 0:02:37.9]} 18. Qxf6 {[%clk
0:01:50.9]} 18... Qe7 {[%clk 0:02:39]} 19. Qb2 {[%clk 0:01:51.2]} 19... d5
{[%clk 0:02:31.3]} 20. Ng5 {[%clk 0:01:50.5]} 20... h6 {[%clk 0:02:23.3]} 21.
cxd5 {[%clk 0:01:40.6]} 21... exd5 {[%clk 0:02:05.5]} 22. Nh3 {[%clk 0:01:40.9]}
22... d4 {[%clk 0:02:04.4]} 23. e4 {[%clk 0:01:38.8]} 23... Ne5 {[%clk
0:02:01.7]} 24. Qe2 {[%clk 0:01:23]} 24... b5 {[%clk 0:01:53.1]} 25. f4 {[%clk
0:01:12.7]} 25... Nd7 {[%clk 0:01:45.1]} 26. h5 {[%clk 0:01:03.4]} 26... c4
{[%clk 0:01:34.9]} 27. bxc4 {[%clk 0:01:05.3]} 27... bxc4 {[%clk 0:01:36.2]} 28.
hxg6 {[%clk 0:01:06.3]} 28... fxg6 {[%clk 0:01:35.2]} 29. Qg4 {[%clk 0:01:02]}
29... Nf8 {[%clk 0:01:32.5]} 30. f5 {[%clk 0:00:59.2]} 30... cxd3 {[%clk
0:01:23]} 31. fxg6 {[%clk 0:01:00.2]} 31... Rc2 {[%clk 0:00:47.7]} 32. Rf7
{[%clk 0:00:58.1]} 32... Rxg2+ {[%clk 0:00:48.2]} 33. Kxg2 {[%clk 0:00:58.5]}
33... Qxe4+ {[%clk 0:00:49.6]} 34. Qxe4 {[%clk 0:00:59.3]} 34... Bxe4+ {[%clk
0:00:51.5]} 35. Kf2 {[%clk 0:01:00.4]} 35... Nxg6 {[%clk 0:00:53.1]} 36. Rxa7
{[%clk 0:01:00.5]} 36... Rf8+ {[%clk 0:00:52.8]} 37. Nf4 {[%clk 0:01:01.5]}
37... Nxf4 {[%clk 0:00:53.4]} 38. gxf4 {[%clk 0:01:02.7]} 38... Rxf4+ {[%clk
0:00:55.3]} 39. Kg3 {[%clk 0:01:04]} 39... Rf3+ {[%clk 0:00:53.8]} 40. Kh4
{[%clk 0:01:04.3]} 40... d2 {[%clk 0:00:51.3]} 41. Rg1+ {[%clk 0:01:05.5]} 41...
Kf8 {[%clk 0:00:51.9]} 42. Rd1 {[%clk 0:00:44.6]} 42... Rd3 {[%clk 0:00:43.5]}
43. Rb1 {[%clk 0:00:44.6]} 43... Rh3+ {[%clk 0:00:44.5]} 44. Kxh3 {[%clk
0:00:43.2]} 44... Bxb1 {[%clk 0:00:46.4]} 45. Ra8+ {[%clk 0:00:43.6]} 45... Ke7
{[%clk 0:00:47.5]} 46. Ra7+ {[%clk 0:00:43.5]} 46... Kd6 {[%clk 0:00:48.7]} 0-1